Cogmind - Beta 11 @@@ ROGUE MODE // 2022.04.02 @ 10:18:58 Player: TickTock Result: Destroyed by L-31 Rogue with Katana Performance ------------- Evolutions (1) 500 Regions Visited (2) 400 Robots Destroyed (28) 140 Value Destroyed (815) 815 Prototype IDs (0) 0 Alien Tech Used (0) 0 Bonus (0) 0 TOTAL SCORE: 1855 Bonus ------- None Cogmind --------- Core Integrity 0/400 Matter 293/300 Energy 100/100 System Corruption 0% Temperature Cool (0) Movement Core (50) Location -9/Materials Parts ------- > --- POWER (2) -------- (None) > --- PROPULSION (2) --- (None) > --- UTILITY (2) ------ Signal Interpreter > --- WEAPON (3) ------- (None) > --- INVENTORY (5) ---- Heat Sink Sensor Array Seismic Detector Peak State ------------ > --- POWER ------------ Ion Engine > --- PROPULSION ------- Aluminum Leg Aluminum Leg > --- UTILITY ---------- Heat Sink Hardened Light Armor Plating > --- WEAPON ----------- Particle Gun Beam Cannon > --- INVENTORY -------- Heat Sink Seismic Detector Beam Cannon Grenade Launcher [Rating: 9] Favorites ----------- Power Ion Engine Engine Ion Engine Propulsion Aluminum Leg Leg Aluminum Leg Utility Heat Sink Device Heat Sink Storage Small Matter Pod Processor Signal Interpreter Protection Hardened Light Armor Plating Weapon Beam Cannon Energy Gun Particle Gun Energy Cannon Beam Cannon Ballistic Gun Assault Rifle Launcher Grenade Launcher Build | -11 -10 -9 ------- Run | Scr Mat Mat Slots Evolved 2 | . . 2 Power 1 | . . 1 Propulsion . | . . . Utility . | . . . Weapon 1 | . . 1 Parts Attached 29 | 6 14 9 Power 6 | 1 2 3 Engine 6 | 1 2 3 Core . | . . . Reactor . | . . . Propulsion 5 | 2 2 1 Treads . | . . . Leg 5 | 2 2 1 Wheel . | . . . Hover . | . . . Flight . | . . . Utility 9 | . 8 1 Device 4 | . 3 1 Storage 3 | . 3 . Processor 1 | . 1 . Hackware . | . . . Protection 1 | . 1 . Artifact . | . . . Weapon 9 | 3 2 4 Energy Gun 2 | 1 1 . Energy Cannon 3 | . 1 2 Ballistic Gun 3 | 2 . 1 Ballistic Cannon . | . . . Launcher 1 | . . 1 Special Weapon . | . . . Impact Weapon . | . . . Slashing Weapon . | . . . Piercing Weapon . | . . . Special Melee Weapon . | . . . Unidentified Prototypes . | . . . Parts Lost 14 | . 1 13 Power 5 | . 1 4 Propulsion 3 | . . 3 Utility 1 | . . 1 Weapon 5 | . . 5 Highest Loss Streak 6 | . 1 6 To Critical Strikes . | . . . Average Slot Usage (%) 76 | . 83 58 Engine 11 | . 10 15 Leg 21 | . 27 6 Device 8 | . 8 8 Processor 4 | . 1 11 Protection 4 | . 5 . Energy Gun 10 | . 14 1 Energy Cannon 8 | . 9 5 Ballistic Gun 5 | . 4 7 Naked Turns . | . . . Heaviest Build 89 | 7 89 17 Greatest Support 20 | 20 20 20 Greatest Overweight (x) 5 | . 4 5 Average Overweight (x) . | . . 1 Largest Inventory Capacity 30 | 5 30 5 Average Capacity 5 | 5 5 5 Most Carried 5 | 5 5 4 Average Carried 3 | . 4 2 Final Capacity 5 | 5 5 5 Final Carried 5 | 5 4 3 Class Distribution -------------------- 53% | Scavenger-Mutant 42% | Mutant 3% | Skirmisher Dominant Class ---------------- Scavenger-Mutant | -10/Materials Scavenger-Mutant | -9/Materials Resources | -11 -10 -9 ----------- Run | Scr Mat Mat Matter Collected 576 | 263 198 115 Remotely . | . . . Salvage Created 982 | 47 544 391 Parts 64 | 4 35 25 Haulers Intercepted . | . . . Recyclers Shooed . | . . . Parts Field Recycled . | . . . Retrieved Matter . | . . . Parts Self-Destructed . | . . . Prevented . | . . . Kills | -11 -10 -9 ------- Run | Scr Mat Mat Combat Hostiles Destroyed 22 | 1 12 9 Guns 12 | 1 9 2 Cannons 8 | . 3 5 AOE 2 | . . 2 Classes Destroyed 9 | 1 5 3 Worker 2 | . 1 1 Recycler 1 | . 1 . Operator 1 | . 1 . Watcher 2 | . 2 . Swarmer 3 | . 3 . Grunt 15 | 1 9 5 Brawler 1 | . . 1 Duelist 1 | . . 1 Sentry 2 | . . 2 Best Kill Streak 5 | 1 3 5 Combat Bots Only 4 | 1 3 4 Max Kills in Single Turn 1 | 1 1 1 Gunslinging . | . . . Exploded 1 | . . 1 Melee . | . . . Uniques/NPCs Destroyed . | . . . Combat | -11 -10 -9 -------- Run | Scr Mat Mat Damage Taken 1645 | 11 489 1145 Core 506 | . 97 409 Absorbed by Shields . | . . . Core Remaining (%) 80 | 100 61 . Volleys Fired 80 | 1 44 35 Largest 3 | 2 2 3 Hottest 185 | 60 125 185 Shots Fired 143 | 2 89 52 Gun 93 | 2 65 26 Cannon 46 | . 24 22 Launcher 4 | . . 4 Special . | . . . Kinetic 40 | 1 20 19 Thermal 78 | . 49 29 Explosive 4 | . . 4 Electromagnetic 21 | 1 20 . Robot Hit Streak 8 | 1 8 8 Robot Miss Streak 4 | . 4 2 Penetration Max . | . . . Secondary Targets . | . . . Shots Hit Robots 81 | 1 48 32 Core Hits 43 | 1 23 19 Critical Kills . | . . . Critical Parts Destroyed . | . . . Critical Strikes 1 | . 1 . Burn 1 | . 1 . Melee Attacks . | . . . Impact . | . . . Slashing . | . . . Piercing . | . . . Sneak Attacks . | . . . Combat Hostiles . | . . . Follow-up Attacks . | . . . Damage Inflicted 1634 | 15 864 755 Guns 749 | 15 464 270 Cannons 562 | . 313 249 Explosions 322 | . 86 236 Melee . | . . . Ramming 1 | . 1 . Kinetic 265 | . 68 197 Thermal 946 | . 624 322 Explosive 236 | . . 236 Electromagnetic 186 | 15 171 . Impact . | . . . Slashing . | . . . Piercing . | . . . Highest Corruption 1 | . 1 . Average Corruption 1 | . 1 . Corruption Purged . | . . . Corruption Blocked . | . . . Effects 1 | . 1 . Misfires 1 | . 1 . Overload Shots . | . . . Overflow Damage 17 | . 17 . Projectiles 3 | . 3 . Explosions 14 | . 14 . Melee . | . . . Knockbacks . | . . . Impact . | . . . Kinetic . | . . . Secondary . | . . . Self-Inflicted Damage 18 | . . 18 Shots 1 | . . 1 Rammed . | . . . Targets Rammed 1 | . 1 . Kicked 1 | . 1 . Crushed . | . . . Highest Temperature 382 | . 360 382 Average Temperature 123 | . 110 148 Received Heat Transfer 681 | 6 261 414 Siege Activations . | . . . Robots Corrupted . | . . . Combat Hostiles . | . . . Parts Fried . | . . . Impact Corruptions . | . . . Robots Melted . | . . . Combat Hostiles . | . . . Parts Melted 2 | . 2 . Heat Transferred 2098 | . 1395 703 Parts Sabotaged . | . . . Parts Stolen . | . . . Parts Stripped . | . . . Power Chain Reactions 2 | . 2 . Missiles Intercepted . | . . . Alert | -11 -10 -9 ------- Run | Scr Mat Mat Peak Influence 326 | 20 301 326 Initial 61 | . 13 61 Average 160 | 3 143 261 Maximum Alert Level 1 | . 1 1 Low Security (%) 69 | 100 85 17 Level 1 30 | . 14 82 Level 2 . | . . . Level 3 . | . . . Level 4 . | . . . Level 5 . | . . . High Security . | . . . Max Security . | . . . Squads Dispatched 5 | . 4 1 Investigation . | . . . Extermination . | . . . Reinforcement 5 | . 4 1 Assault . | . . . Garrison . | . . . Intercept . | . . . Searches Triggered . | . . . Construction Impeded . | . . . Haulers Reinforced . | . . . Active Scanning Responses . | . . . Cargo Convoy Interrupts . | . . . Stealth | -11 -10 -9 --------- Run | Scr Mat Mat Distress Signals 3 | . 2 1 Communications Jammed . | . . . Distress Signals . | . . . Times Spotted 37 | 1 21 15 Peak Tracking Total 8 | 1 5 8 Tactical Retreats . | . . . Traps | -11 -10 -9 ------- Run | Scr Mat Mat Traps Triggered 1 | . 1 . Indirectly . | . . . Trap Hack Attempts . | . . . Triggered . | . . . Disarmed . | . . . Reprogrammed . | . . . Reused . | . . . Traps Extracted . | . . . Installed . | . . . Triggered . | . . . Machines | -11 -10 -9 ---------- Run | Scr Mat Mat Machines Disabled 2 | . 2 . Max in Single Turn 1 | . 1 . Machines Sabotaged . | . . . Garrisons Compromised . | . . . Overloaded Fab Kills . | . . . Hacking | -11 -10 -9 --------- Run | Scr Mat Mat Machines Accessed 2 | . 2 . Terminals 2 | . 2 . Fabricators . | . . . Repair Stations . | . . . Recycling Units . | . . . Scanalyzers . | . . . Garrison Access . | . . . Total Hacks 3 | . 3 . Successful 3 | . 3 . Failed . | . . . Catastrophic . | . . . Database Lockouts . | . . . Manual . | . . . Terminals 3 | . 3 . Fabricators . | . . . Repair Stations . | . . . Recycling Units . | . . . Scanalyzers . | . . . Garrison Access . | . . . Terminal Hacks 3 | . 3 . Record 2 | . 2 . Registered Components 1 | . 1 . Fabricator Hacks . | . . . Repair Station Hacks . | . . . Recycling Unit Hacks . | . . . Scanalyzer . | . . . Garrison Access Hacks . | . . . Unauthorized Hacks . | . . . Terminals . | . . . Fabricators . | . . . Repair Stations . | . . . Recycling Units . | . . . Scanalyzers . | . . . Garrison Access . | . . . Data Cores Recovered . | . . . Used . | . . . Hacking Detections . | . . . Full Trace Events . | . . . Feedback Events . | . . . Feedback Blocked . | . . . Robot Schematics Acquired . | . . . Robots Built . | . . . Authchips . | . . . Time . | . . . Total Robot Build Rating . | . . . Part Schematics Acquired . | . . . Parts Built . | . . . Authchips . | . . . Time . | . . . Total Part Build Rating . | . . . Parts Repaired . | . . . Time . | . . . Parts Recycled . | . . . Recycled Matter . | . . . Retrieved Matter . | . . . Retrieved Components . | . . . Parts Scanalyzed . | . . . Part Schematics Acquired . | . . . Parts Damaged . | . . . Bothacking | -11 -10 -9 ------------ Run | Scr Mat Mat Used RIF Installer . | . . . Robots Hacked . | . . . Non-combat . | . . . Combat . | . . . Robot Hacks Applied . | . . . Relay Couplers Released . | . . . Fabnet Peak Effective % . | . . . Robots Rewired . | . . . Allies Hacked . | . . . Hacks Repelled . | . . . Allies | -11 -10 -9 -------- Run | Scr Mat Mat Total Allies . | . . . Largest Group . | . . . Highest-Rated Group . | . . . Highest-Rated Ally . | . . . Total Orders . | . . . Ally Attacks . | . . . Total Damage . | . . . Kills . | . . . Allies Corrupted . | . . . Allies Melted . | . . . Intel | -11 -10 -9 ------- Run | Scr Mat Mat Robot Analysis Total . | . . . Derelict Logs Recovered . | . . . Drone Launches . | . . . Drone Recoveries . | . . . Exploration | -11 -10 -9 ------------- Run | Scr Mat Mat Turns Passed 1686 | 159 1095 432 Spaces Moved 1052 | 133 731 188 Core 110 | 26 . 84 Treads . | . . . Legs 942 | 107 731 104 Wheels . | . . . Hover . | . . . Flight . | . . . Fastest Speed 50 | 50 120 50 Average Speed 127 | 106 120 170 Slowest Speed 400 | 120 400 300 Overloaded Moves . | . . . Propulsion Burnouts . | . . . Robots Hopped . | . . . Cave-ins Triggered . | . . . Exploration Rate (%) 25 | 6 55 15 Regions Visited 2 Branch Regions . Pre-discovered Areas . | . . . Known Exits Taken 1 | . 1 . Unknown Exits Taken 1 | 1 . . Scrap Searched . | . . . Spaces Dug . | . . . Terrain Destroyed 35 | . 11 24 Melee . | . . . Projectile . | . . . AOE 35 | . 11 24 Terrain Rammed . | . . . Walls Destroyed . | . . . Machines Disabled . | . . . Actions | -11 -10 -9 --------- Run | Scr Mat Mat Total 1253 | 146 859 248 Wait 63 | 1 47 15 Move 1050 | 132 730 188 Hop . | . . . Pick Up 11 | 5 6 . Fast Attach 25 | 5 13 7 Attach 4 | 1 1 2 Detach 2 | 1 . 1 Swap . | . . . Drop 17 | . 17 . Fire 80 | 1 44 35 Melee . | . . . Ram . | . . . Kick 1 | . 1 . Crush . | . . . Escape Stasis . | . . . Rewire . | . . . Trap . | . . . Miscellaneous . | . . . Route ------- -11/Scrapyard -10/Materials (discovered 2 exits: *Mat / *Min) -9/Materials (discovered 1 exit: *Min) History --------- Turn | Location | Event 2 | -11/Scrapyard | Met Revision 17 129 | -11/Scrapyard | Discovered new exit (range 8) 160 | -11/Scrapyard | Entered Materials 318 | -10/Materials | Build established: Mutant 530 | -10/Materials | Discovered new exit (range 16) 761 | -10/Materials | Discovered new exit (range 10) 878 | -10/Materials | Build established: Scavenger-Mutant 1199 | -10/Materials | Identified exit to Mines 1253 | -10/Materials | Identified exit to Materials 1255 | -10/Materials | Entered another Materials area 1255 | -9/Materials | Evolved 2 slots: Power x1, Weapon x1 1255 | -9/Materials | Discovered new exit (range 7) 1266 | -9/Materials | Identified exit to Mines 1364 | -9/Materials | Lost 6 parts (1p2n3w) 1492 | -9/Materials | Core integrity fell below 50% 1520 | -9/Materials | Lost 3 parts (1p1u1w) 1681 | -9/Materials | Core integrity fell below 20% 1687 | -9/Materials | Destroyed by L-31 Rogue with Katana Last Messages --------------- 01503_ U-05 Engineer lays Concrete. 01506_ Acquired 20 matter. 01513_ U-05 Engineer lays Concrete. 01515_ U-05 Engineer builds a Wall. 01519_ U-05 Engineer lays Concrete. 01527_ Acquired Sensor Array. 01528_ U-05 Engineer lays Concrete. 01540_ Acquired 10 matter. 01541_ U-05 Engineer builds a Wall. 01661_ U-05 Engineer destroyed. 01663_ K-01 Serf collects debris. 01664_ Hvy. Assault Rifle destroyed. 01668_ K-01 Serf collects debris. 01669_ Ion Engine destroyed. 01675_ Aluminum Leg destroyed. 01678_ Critical hit (Burn: +37). 01680_ Ion Engine destroyed. 01680_ K-01 Serf collects debris. 01686_ L-31 Rogue suffers critical hit (Burn). [Achievement: First Step to Greatness] Map ----- +----------------------------------------------------+ | ?????????????????????????????????????????????????? | | ?????????????????????????????????????????????????? | | ?????????????????????????????????????????????????? | | ?????????????????????????????????????????????????? | | ?????????????????????????????????????????????????? | | ?????????????????????????????????????????????????? | | ?????????????????????????????????????????????????? | | ?????????????????????????????????????????????????? | | ????????????????????????????????##+##????????????? | | ???????????????????????????????# ??????????? | | ???????????????????????????????# ???????? | | ???????????????????????????????# ?????? | | ???????????????????????????????# ?????? | | ???????????????????????????????/ #?????? | | ???????????????????????????????# #?????? | | ???????????????????????????????# #?????# | | ???????????????????????????????# u ??????# | | ???????????????????????######### ?####### | | ?????????????????#### ?# | | ?????????????????# !=# #????####### | | ?????????????????# ==# #??????????# | | ?????????????????# # #??????????# | | ?????????????????# """ # #?????????## | | ?????????????????# R" # #?????????# | | ?????????????????# """ # g #?????????# | | ?????????? ?????? # @u#### #?????????# | | ?????????? """??####/### l #??# #?????????# | | ??????????""""" # =| k #??# #?????????# | | ??????????""""" + !%Y #??# #?????????## | | ??????????""""" # a*! #??# #?????????## | | ?????????? """??####/#######??# ####+###??## | | ?????????? ?????? ???????# ## #??## | | ????????????????# #??????# ##### | | ????????????????# """#??????# | | ????????????????#r? """#??????# ! ##### | | ????????????????+?? """#??????########## ##### | | ??????????????????? #???????????????###+####### | | ??????????????????##?????????????????????# !! [ # | | ?????????????????????????????????????????#= !| + | | ?????????????????????????????????????????# * # | | ?????????????????????????????????????????####### # | | ?????????????????????????????????##????????????### | | ???????????????????????????????? #########* | | ??????????????????????????????????????# [% | | ??????????????????????????????????????# | | ??????????????????????????????????????# | | ??????????????????????????????????????#####+##### | | ????????????????????????????????????????????????## | | ?????????????????????????????????????????????????? | | ?????????????????????????????????????????????????? | +----------------------------------------------------+ Best States ------------- Heat Dissipation 35 Energy Generation 15 Energy Capacity 400 Matter Stores 350 Matter Capacity 350 Sight Range 16 Robot Scan Range 14 Terrain Scan Density 10 Armor Coverage 150 Evasion (%) 55 Item Schematics ----------------- None Robot Schematics ------------------ None Fabricated ------------ Nothing Alien Tech Used ----------------- None Achievements -------------- First Step to Greatness Uninvited Guest Challenges ------------ None Game ------ Seed GammaConcussiveFalx Manual? 0 Play Time 01:32:03 Cumulative 3.0 hours Start 2022.04.02 @ 07:03:29 End 2022.04.02 @ 10:18:58 Sessions 1 Manual Loads 0 Difficulty Rogue Special Mode None Game No. 1 Rogue 1 Adventurer 0 Explorer 0 Win Type - Total 0 Types 0/0/0/0/0/0/0/0/0 Lore% 0 Gallery% 1 Achievement% 0 Wizard Run 0 Options --------- ASCII 0 Keyboard 1 Movement Numpad Keybinds 0 Fullscreen 1 Font 24/Crisp Map View 76x56 Tactical HUD 1 Map Filters NONE Filters NONE Steam 1 RUN: 9b4e921c-d0c4-47d5-a76b-ef4cae1124c3